[Event "Early-Titled-Tuesday-Blitz-October-10-2023"]
[Site "Chess.com"]
[Date "2023.10.10"]
[Round "5"]
[White "InitiatingASC"]
[Black "banane_verte"]
[Result "1/2-1/2"]
[WhiteElo "2341"]
[BlackElo "2513"]
[TimeControl "180+1"]
[EndTime "8:53:56 PDT"]
[Termination "Game drawn by stalemate"]

1. d4 {[%clk 0:02:48.1]} 1... d5 {[%clk 0:02:58.2]} 2. c4 {[%clk 0:02:47.9]}
2... c6 {[%clk 0:02:58.7]} 3. cxd5 {[%clk 0:02:47.6]} 3... cxd5 {[%clk
0:02:59.6]} 4. Nc3 {[%clk 0:02:46.9]} 4... Nc6 {[%clk 0:02:59.9]} 5. Bf4 {[%clk
0:02:46.2]} 5... e5 {[%clk 0:02:57.4]} 6. dxe5 {[%clk 0:02:44.4]} 6... d4 {[%clk
0:02:56.9]} 7. Nb1 {[%clk 0:02:43.7]} 7... Qa5+ {[%clk 0:02:41.6]} 8. Bd2 {[%clk
0:02:39.3]} 8... Bb4 {[%clk 0:02:28.7]} 9. Nf3 {[%clk 0:02:37.3]} 9... Nxe5
{[%clk 0:02:28.5]} 10. Nxe5 {[%clk 0:02:35.4]} 10... Bxd2+ {[%clk 0:02:28.7]}
11. Nxd2 {[%clk 0:02:28.8]} 11... Qxe5 {[%clk 0:02:29.6]} 12. Nf3 {[%clk
0:02:15.8]} 12... Qa5+ {[%clk 0:02:29.5]} 13. Qd2 {[%clk 0:02:15.8]} 13... Qxd2+
{[%clk 0:02:27.7]} 14. Kxd2 {[%clk 0:02:15.8]} 14... Nf6 {[%clk 0:02:18.1]} 15.
Nxd4 {[%clk 0:02:15.6]} 15... O-O {[%clk 0:01:58.6]} 16. f3 {[%clk 0:02:02]}
16... Rd8 {[%clk 0:01:57.1]} 17. e3 {[%clk 0:01:57.2]} 17... Nd5 {[%clk
0:01:57]} 18. Rd1 {[%clk 0:01:55.7]} 18... Bd7 {[%clk 0:01:54.4]} 19. Bc4 {[%clk
0:01:54]} 19... Nb6 {[%clk 0:01:52.7]} 20. Bb3 {[%clk 0:01:51.2]} 20... Rac8
{[%clk 0:01:49.9]} 21. Rc1 {[%clk 0:01:47.2]} 21... Kf8 {[%clk 0:01:48.8]} 22.
Rxc8 {[%clk 0:01:45.3]} 22... Rxc8 {[%clk 0:01:48.7]} 23. Rc1 {[%clk 0:01:46]}
23... Rxc1 {[%clk 0:01:48.8]} 24. Kxc1 {[%clk 0:01:45.4]} 24... Ke7 {[%clk
0:01:49.7]} 25. Kd2 {[%clk 0:01:44.2]} 25... Kd6 {[%clk 0:01:49.8]} 26. Bxf7
{[%clk 0:01:41.1]} 26... Kc5 {[%clk 0:01:39.4]} 27. Ne6+ {[%clk 0:01:34.8]}
27... Bxe6 {[%clk 0:01:37.6]} 28. Bxe6 {[%clk 0:01:35.7]} 28... Na4 {[%clk
0:01:36.4]} 29. Kc2 {[%clk 0:01:27.3]} 29... Kd6 {[%clk 0:01:35.1]} 30. Bf5
{[%clk 0:01:24.2]} 30... h6 {[%clk 0:01:34.5]} 31. Be4 {[%clk 0:01:21.7]} 31...
Nc5 {[%clk 0:01:34.1]} 32. Bd3 {[%clk 0:01:22.2]} 32... Ke5 {[%clk 0:01:33.7]}
33. b4 {[%clk 0:01:20.2]} 33... Ne6 {[%clk 0:01:31.4]} 34. Kc3 {[%clk 0:01:17]}
34... Nc7 {[%clk 0:01:31.7]} 35. Bc4 {[%clk 0:01:13.3]} 35... b5 {[%clk
0:01:30.1]} 36. Bb3 {[%clk 0:01:10.3]} 36... Ne8 {[%clk 0:01:29]} 37. Bc2 {[%clk
0:01:02.1]} 37... Nc7 {[%clk 0:01:28.7]} 38. Be4 {[%clk 0:00:52.1]} 38... Ne8
{[%clk 0:01:28]} 39. Bd3 {[%clk 0:00:43]} 39... Nc7 {[%clk 0:01:27.4]} 40. f4+
{[%clk 0:00:40.1]} 40... Kd5 {[%clk 0:01:21]} 41. e4+ {[%clk 0:00:39.2]} 41...
Kd6 {[%clk 0:01:20.6]} 42. g3 {[%clk 0:00:39.1]} 42... a6 {[%clk 0:01:19]} 43.
Bf1 {[%clk 0:00:34.4]} 43... Ne6 {[%clk 0:01:18.5]} 44. Bg2 {[%clk 0:00:33.4]}
44... g6 {[%clk 0:01:16.8]} 45. e5+ {[%clk 0:00:33.8]} 45... Kd7 {[%clk
0:01:16.2]} 46. Be4 {[%clk 0:00:32.5]} 46... Nf8 {[%clk 0:01:15.4]} 47. Kd4
{[%clk 0:00:30.6]} 47... g5 {[%clk 0:01:15.8]} 48. f5 {[%clk 0:00:29.7]} 48...
Ke7 {[%clk 0:01:16.1]} 49. Kd5 {[%clk 0:00:25.4]} 49... Nd7 {[%clk 0:01:16]} 50.
f6+ {[%clk 0:00:22]} 50... Ke8 {[%clk 0:01:15.3]} 51. Kd6 {[%clk 0:00:19.3]}
51... Nb6 {[%clk 0:01:15]} 52. Bc6+ {[%clk 0:00:19]} 52... Kf8 {[%clk
0:01:14.9]} 53. e6 {[%clk 0:00:17.6]} 53... Nc4+ {[%clk 0:01:15.1]} 54. Kd7
{[%clk 0:00:17.7]} 54... Ne5+ {[%clk 0:01:15.5]} 55. Kc7 {[%clk 0:00:15.8]}
55... Ng6 {[%clk 0:01:11.2]} 56. e7+ {[%clk 0:00:15.3]} 56... Nxe7 {[%clk
0:01:11.8]} 57. fxe7+ {[%clk 0:00:16]} 57... Kxe7 {[%clk 0:01:12.7]} 58. Bb7
{[%clk 0:00:16]} 58... a5 {[%clk 0:01:08.4]} 59. bxa5 {[%clk 0:00:15.8]} 59...
b4 {[%clk 0:01:09.2]} 60. Bd5 {[%clk 0:00:15.4]} 60... Kf6 {[%clk 0:01:09.3]}
61. a6 {[%clk 0:00:15.4]} 61... Ke5 {[%clk 0:01:10.2]} 62. Bb3 {[%clk
0:00:14.9]} 62... h5 {[%clk 0:01:09.7]} 63. a7 {[%clk 0:00:15.4]} 63... h4
{[%clk 0:01:10.2]} 64. a8=Q {[%clk 0:00:15.9]} 64... hxg3 {[%clk 0:01:11.1]} 65.
hxg3 {[%clk 0:00:15.8]} 65... g4 {[%clk 0:01:12]} 66. Qg2 {[%clk 0:00:15.6]}
66... Kd4 {[%clk 0:01:12.4]} 67. Qe2 {[%clk 0:00:15.2]} 67... Kc3 {[%clk
0:01:12.9]} 68. Qxg4 {[%clk 0:00:16.1]} 68... Kb2 {[%clk 0:01:13.2]} 69. Qxb4
{[%clk 0:00:16.4]} 69... Ka1 {[%clk 0:01:13.7]} 70. Bc4 {[%clk 0:00:15.6]}
1/2-1/2

[Event "Early-Titled-Tuesday-Blitz-October-10-2023"]
[Site "Chess.com"]
[Date "2023.10.10"]
[Round "5"]
[White "Witty_Alien"]
[Black "angryspacevoid"]
[Result "0-1"]
[WhiteElo "2238"]
[BlackElo "2524"]
[TimeControl "180+1"]
[EndTime "8:53:59 PDT"]
[Termination "angryspacevoid won on time"]

1. e4 {[%clk 0:03:00.9]} 1... c5 {[%clk 0:02:57.3]} 2. Nf3 {[%clk 0:03:01]} 2...
Nf6 {[%clk 0:02:54.8]} 3. Bd3 {[%clk 0:02:48.6]} 3... Nc6 {[%clk 0:02:47.4]} 4.
c3 {[%clk 0:02:48.5]} 4... d5 {[%clk 0:02:46.6]} 5. e5 {[%clk 0:02:39.8]} 5...
Nd7 {[%clk 0:02:33.7]} 6. Qe2 {[%clk 0:02:18.6]} 6... c4 {[%clk 0:02:29.5]} 7.
Bc2 {[%clk 0:02:14.3]} 7... Nc5 {[%clk 0:02:28.7]} 8. Nd4 {[%clk 0:02:07.3]}
8... g6 {[%clk 0:02:23.3]} 9. b4 {[%clk 0:01:53]} 9... Ne6 {[%clk 0:02:21.6]}
10. Nxe6 {[%clk 0:01:47.3]} 10... Bxe6 {[%clk 0:02:19.8]} 11. b5 {[%clk
0:01:46.1]} 11... Nb8 {[%clk 0:02:12.1]} 12. d4 {[%clk 0:01:27.1]} 12... cxd3
{[%clk 0:02:09.2]} 13. Bxd3 {[%clk 0:01:26.3]} 13... Nd7 {[%clk 0:02:03.8]} 14.
O-O {[%clk 0:00:43.4]} 14... Nc5 {[%clk 0:01:48.5]} 15. Bc2 {[%clk 0:00:38.6]}
15... Bg7 {[%clk 0:01:47.4]} 16. Be3 {[%clk 0:00:26]} 16... Rc8 {[%clk 0:01:44]}
17. b6 {[%clk 0:00:25.4]} 17... axb6 {[%clk 0:01:39.6]} 18. Qb5+ {[%clk
0:00:24.8]} 18... Bd7 {[%clk 0:01:39]} 19. Qb4 {[%clk 0:00:21.3]} 19... Bxe5
{[%clk 0:01:37.6]} 20. f4 {[%clk 0:00:18.8]} 20... Bg7 {[%clk 0:01:34]} 21. Nd2
{[%clk 0:00:19]} 21... O-O {[%clk 0:01:33]} 22. Rab1 {[%clk 0:00:17.3]} 22...
Na6 {[%clk 0:01:22.5]} 23. Qxb6 {[%clk 0:00:14.5]} 23... Qxb6 {[%clk 0:01:14.1]}
24. Bxb6 {[%clk 0:00:14.7]} 24... Bxc3 {[%clk 0:01:11.1]} 25. Nf3 {[%clk
0:00:13.5]} 25... Nb4 {[%clk 0:01:10.5]} 26. Bb3 {[%clk 0:00:10.9]} 26... Bf5
{[%clk 0:00:59]} 27. Rbc1 {[%clk 0:00:08.2]} 27... Nd3 {[%clk 0:00:54.6]} 28.
Rxc3 {[%clk 0:00:06.7]} 28... Rxc3 {[%clk 0:00:53.8]} 29. Bxd5 {[%clk
0:00:06.8]} 29... Nxf4 {[%clk 0:00:53.8]} 30. Bxb7 {[%clk 0:00:05.8]} 30... Rb8
{[%clk 0:00:53.4]} 31. Ba5 {[%clk 0:00:04.4]} 31... Rc2 {[%clk 0:00:42.6]} 32.
Nd4 {[%clk 0:00:04.1]} 32... Rxa2 {[%clk 0:00:22.6]} 33. Nxf5 {[%clk 0:00:04.6]}
33... Rxb7 {[%clk 0:00:20.4]} 34. Nh6+ {[%clk 0:00:03.1]} 34... Kg7 {[%clk
0:00:19.7]} 35. g3 {[%clk 0:00:01.1]} 35... Nh3+ {[%clk 0:00:19.5]} 36. Kh1
{[%clk 0:00:01.7]} 36... Rxa5 {[%clk 0:00:18.6]} 0-1

[Event "Early-Titled-Tuesday-Blitz-October-10-2023"]
[Site "Chess.com"]
[Date "2023.10.10"]
[Round "5"]
[White "MidnightFox"]
[Black "Witik"]
[Result "0-1"]
[WhiteElo "2490"]
[BlackElo "2700"]
[TimeControl "180+1"]
[EndTime "8:54:00 PDT"]
[Termination "Witik won by checkmate"]

1. d4 {[%clk 0:03:00.9]} 1... Nf6 {[%clk 0:02:59.9]} 2. c3 {[%clk 0:02:58.7]}
2... g6 {[%clk 0:02:52.4]} 3. Bf4 {[%clk 0:02:54.1]} 3... Bg7 {[%clk 0:02:52.2]}
4. h3 {[%clk 0:02:54]} 4... d6 {[%clk 0:02:52.1]} 5. e3 {[%clk 0:02:54.4]} 5...
O-O {[%clk 0:02:50]} 6. Nf3 {[%clk 0:02:54.9]} 6... Nfd7 {[%clk 0:02:43.3]} 7.
Be2 {[%clk 0:02:52.6]} 7... e5 {[%clk 0:02:43.2]} 8. Bh2 {[%clk 0:02:52.5]} 8...
Nc6 {[%clk 0:02:43.1]} 9. O-O {[%clk 0:02:52]} 9... Kh8 {[%clk 0:02:43.7]} 10.
Nbd2 {[%clk 0:02:44]} 10... f5 {[%clk 0:02:43.5]} 11. Qb3 {[%clk 0:02:35.6]}
11... Qe7 {[%clk 0:02:35.3]} 12. dxe5 {[%clk 0:02:17.5]} 12... dxe5 {[%clk
0:02:35]} 13. Nc4 {[%clk 0:01:59.9]} 13... a5 {[%clk 0:02:14]} 14. a4 {[%clk
0:01:57.6]} 14... b6 {[%clk 0:02:09.7]} 15. Rfd1 {[%clk 0:01:52.2]} 15... Ba6
{[%clk 0:01:54.3]} 16. Rd2 {[%clk 0:01:46.4]} 16... g5 {[%clk 0:01:31.2]} 17.
Rad1 {[%clk 0:01:38.7]} 17... Nc5 {[%clk 0:01:31.2]} 18. Qc2 {[%clk 0:01:36.6]}
18... f4 {[%clk 0:01:29.9]} 19. exf4 {[%clk 0:01:25.3]} 19... gxf4 {[%clk
0:01:20.7]} 20. Na3 {[%clk 0:00:58.1]} 20... Bb7 {[%clk 0:01:14.5]} 21. Bb5
{[%clk 0:00:42.2]} 21... e4 {[%clk 0:01:08.4]} 22. Re2 {[%clk 0:00:37.5]} 22...
Rae8 {[%clk 0:00:49.3]} 23. Rde1 {[%clk 0:00:35.1]} 23... Qf6 {[%clk 0:00:36.1]}
24. Nd2 {[%clk 0:00:28.8]} 24... e3 {[%clk 0:00:31.1]} 25. fxe3 {[%clk
0:00:27.6]} 25... fxe3 {[%clk 0:00:31.4]} 26. Nf3 {[%clk 0:00:19.8]} 26... Qh6
{[%clk 0:00:28.2]} 27. Nc4 {[%clk 0:00:15.7]} 27... Rxf3 {[%clk 0:00:25.4]} 28.
gxf3 {[%clk 0:00:15.6]} 28... Qxh3 {[%clk 0:00:26]} 29. Rxe3 {[%clk 0:00:13.8]}
29... Rg8 {[%clk 0:00:26.3]} 30. Kh1 {[%clk 0:00:09.9]} 30... Ne5 {[%clk
0:00:15.7]} 31. Nxe5 {[%clk 0:00:08.8]} 31... Bxe5 {[%clk 0:00:15.4]} 32. Qf2
{[%clk 0:00:08.1]} 32... Bg3 {[%clk 0:00:10.6]} 33. Qf1 {[%clk 0:00:04.7]} 33...
Qxh2# {[%clk 0:00:10.3]} 0-1

[Event "Early-Titled-Tuesday-Blitz-October-10-2023"]
[Site "Chess.com"]
[Date "2023.10.10"]
[Round "5"]
[White "soumeow"]
[Black "RCone"]
[Result "0-1"]
[WhiteElo "2283"]
[BlackElo "2482"]
[TimeControl "180+1"]
[EndTime "8:54:01 PDT"]
[Termination "RCone won on time"]

1. e4 {[%clk 0:03:00.9]} 1... d6 {[%clk 0:02:58.7]} 2. d4 {[%clk 0:02:58.6]}
2... Nf6 {[%clk 0:02:59.1]} 3. Nc3 {[%clk 0:02:58.2]} 3... g6 {[%clk 0:02:58.7]}
4. Be3 {[%clk 0:02:40.8]} 4... c6 {[%clk 0:02:57.1]} 5. Qd2 {[%clk 0:02:30]}
5... Nbd7 {[%clk 0:02:47.3]} 6. f3 {[%clk 0:02:27]} 6... b5 {[%clk 0:02:47.1]}
7. a4 {[%clk 0:02:21.3]} 7... b4 {[%clk 0:02:45]} 8. Nd1 {[%clk 0:02:21.3]} 8...
a5 {[%clk 0:02:45.9]} 9. Bd3 {[%clk 0:02:19.8]} 9... Bg7 {[%clk 0:02:42.7]} 10.
Bh6 {[%clk 0:02:17.9]} 10... Bxh6 {[%clk 0:02:13.7]} 11. Qxh6 {[%clk 0:02:18.8]}
11... c5 {[%clk 0:02:09.9]} 12. c3 {[%clk 0:02:10.3]} 12... cxd4 {[%clk
0:01:59.9]} 13. cxd4 {[%clk 0:02:10.1]} 13... Qb6 {[%clk 0:01:59.1]} 14. Ne2
{[%clk 0:02:09.2]} 14... e5 {[%clk 0:01:59.2]} 15. Ne3 {[%clk 0:01:46.9]} 15...
Bb7 {[%clk 0:01:37.7]} 16. Nc4 {[%clk 0:01:42.8]} 16... Qc7 {[%clk 0:01:33.1]}
17. Rc1 {[%clk 0:01:26.6]} 17... Qb8 {[%clk 0:01:33]} 18. g4 {[%clk 0:01:10]}
18... Ke7 {[%clk 0:01:32.5]} 19. Qh4 {[%clk 0:00:52.6]} 19... h6 {[%clk
0:01:29.1]} 20. Qg3 {[%clk 0:00:46.2]} 20... Kf8 {[%clk 0:01:17.6]} 21. h4
{[%clk 0:00:32.9]} 21... Kg7 {[%clk 0:01:17.6]} 22. Rg1 {[%clk 0:00:31.1]} 22...
Re8 {[%clk 0:00:59.4]} 23. Kf1 {[%clk 0:00:21.7]} 23... d5 {[%clk 0:00:52.2]}
24. Nxe5 {[%clk 0:00:11.2]} 24... Nxe5 {[%clk 0:00:48.6]} 25. dxe5 {[%clk
0:00:12.1]} 25... Qxe5 {[%clk 0:00:48.4]} 26. f4 {[%clk 0:00:10.2]} 26... Qxb2
{[%clk 0:00:46.7]} 27. Rc2 {[%clk 0:00:02.4]} 27... Qa3 {[%clk 0:00:40.9]} 28.
e5 {[%clk 0:00:01.2]} 28... Ne4 {[%clk 0:00:29.5]} 29. Bxe4 {[%clk 0:00:01.7]}
29... Qxg3 {[%clk 0:00:28.6]} 30. Nxg3 {[%clk 0:00:02.6]} 30... dxe4 {[%clk
0:00:29]} 31. Rc7 {[%clk 0:00:02.8]} 31... Ba6+ {[%clk 0:00:28.6]} 32. Kf2
{[%clk 0:00:03.5]} 32... Bd3 {[%clk 0:00:23.4]} 33. Rgc1 {[%clk 0:00:04]} 33...
Rab8 {[%clk 0:00:20.6]} 34. Ne2 {[%clk 0:00:03.3]} 34... b3 {[%clk 0:00:20.7]}
0-1

[Event "Early-Titled-Tuesday-Blitz-October-10-2023"]
[Site "Chess.com"]
[Date "2023.10.10"]
[Round "5"]
[White "valeriocarnicelli"]
[Black "Mystery2007"]
[Result "1-0"]
[WhiteElo "2648"]
[BlackElo "2485"]
[TimeControl "180+1"]
[EndTime "8:54:02 PDT"]
[Termination "valeriocarnicelli won by resignation"]

1. d4 {[%clk 0:03:00.9]} 1... Nf6 {[%clk 0:02:56.6]} 2. Nf3 {[%clk 0:03:00.4]}
2... e6 {[%clk 0:02:55.7]} 3. g3 {[%clk 0:03:01.3]} 3... b6 {[%clk 0:02:54.6]}
4. Bg2 {[%clk 0:03:01.8]} 4... Bb7 {[%clk 0:02:55.3]} 5. O-O {[%clk 0:03:02.5]}
5... Be7 {[%clk 0:02:54.4]} 6. c4 {[%clk 0:03:03.2]} 6... O-O {[%clk 0:02:54.7]}
7. Nc3 {[%clk 0:03:03.7]} 7... d6 {[%clk 0:02:39.9]} 8. Qc2 {[%clk 0:03:03.7]}
8... Nbd7 {[%clk 0:02:39.5]} 9. e4 {[%clk 0:03:01.8]} 9... e5 {[%clk 0:02:39.6]}
10. d5 {[%clk 0:03:00.9]} 10... h6 {[%clk 0:02:31.1]} 11. Nh4 {[%clk 0:02:47.4]}
11... Re8 {[%clk 0:02:22.8]} 12. h3 {[%clk 0:02:32.5]} 12... Bf8 {[%clk
0:02:18.3]} 13. Be3 {[%clk 0:02:31]} 13... g6 {[%clk 0:02:13.3]} 14. b4 {[%clk
0:02:21.8]} 14... a5 {[%clk 0:02:06.8]} 15. a3 {[%clk 0:02:22]} 15... Bg7 {[%clk
0:02:06.4]} 16. Qd2 {[%clk 0:02:17.7]} 16... Kh7 {[%clk 0:02:03.4]} 17. Kh2
{[%clk 0:02:17.6]} 17... Ba6 {[%clk 0:02:01.6]} 18. Nb5 {[%clk 0:02:14.2]} 18...
Nh5 {[%clk 0:01:40.9]} 19. Rfc1 {[%clk 0:01:49.4]} 19... Nf4 {[%clk 0:01:28.9]}
20. Bf1 {[%clk 0:01:42.7]} 20... Nf6 {[%clk 0:01:06.4]} 21. Nc3 {[%clk
0:01:34.8]} 21... Bc8 {[%clk 0:00:48.9]} 22. gxf4 {[%clk 0:01:20]} 22... Ng4+
{[%clk 0:00:34.1]} 23. Kg3 {[%clk 0:01:07.4]} 23... exf4+ {[%clk 0:00:19.8]} 24.
Bxf4 {[%clk 0:01:07.3]} 24... g5 {[%clk 0:00:19.7]} 25. hxg4 {[%clk 0:00:38.4]}
25... gxf4+ {[%clk 0:00:19.7]} 26. Kh3 {[%clk 0:00:38.4]} 26... f3 {[%clk
0:00:12.8]} 27. Nf5 {[%clk 0:00:32.8]} 27... Bxf5 {[%clk 0:00:11.8]} 28. exf5
{[%clk 0:00:31]} 28... axb4 {[%clk 0:00:08.1]} 29. axb4 {[%clk 0:00:31.1]} 29...
Rxa1 {[%clk 0:00:09]} 30. Rxa1 {[%clk 0:00:31.6]} 30... Be5 {[%clk 0:00:05.8]}
31. Bd3 {[%clk 0:00:28]} 31... Rg8 {[%clk 0:00:05.1]} 32. f6+ {[%clk 0:00:28.1]}
32... Rg6 {[%clk 0:00:02.9]} 33. Re1 {[%clk 0:00:22.9]} 33... Qxf6 {[%clk
0:00:02.7]} 34. Bxg6+ {[%clk 0:00:19.5]} 34... fxg6 {[%clk 0:00:03.6]} 35. Ne4
{[%clk 0:00:16.9]} 35... h5 {[%clk 0:00:03.9]} 36. Nxf6+ {[%clk 0:00:17.1]} 1-0

[Event "Early-Titled-Tuesday-Blitz-October-10-2023"]
[Site "Chess.com"]
[Date "2023.10.10"]
[Round "5"]
[White "VOneChess"]
[Black "Flaccidmoves"]
[Result "0-1"]
[WhiteElo "2260"]
[BlackElo "2436"]
[TimeControl "180+1"]
[EndTime "8:54:02 PDT"]
[Termination "Flaccidmoves won on time"]

1. e4 {[%clk 0:03:00.9]} 1... e6 {[%clk 0:02:58.8]} 2. d4 {[%clk 0:03:00]} 2...
d6 {[%clk 0:02:59.4]} 3. Nc3 {[%clk 0:02:59.8]} 3... Ne7 {[%clk 0:02:59.9]} 4.
f4 {[%clk 0:03:00.2]} 4... Nd7 {[%clk 0:02:57.7]} 5. Nf3 {[%clk 0:03:00.5]} 5...
Nb6 {[%clk 0:02:52.7]} 6. Bd3 {[%clk 0:03:00.7]} 6... Ng6 {[%clk 0:02:43.2]} 7.
O-O {[%clk 0:03:00.1]} 7... Be7 {[%clk 0:02:35.4]} 8. f5 {[%clk 0:02:55.4]} 8...
Nh4 {[%clk 0:02:18]} 9. fxe6 {[%clk 0:02:36.7]} 9... Bxe6 {[%clk 0:02:09.3]} 10.
Nxh4 {[%clk 0:02:26]} 10... Bxh4 {[%clk 0:02:10.2]} 11. d5 {[%clk 0:02:09.5]}
11... Bd7 {[%clk 0:02:09.2]} 12. Be3 {[%clk 0:02:07.8]} 12... Bf6 {[%clk
0:02:05]} 13. Qf3 {[%clk 0:01:58.5]} 13... O-O {[%clk 0:02:03.7]} 14. a4 {[%clk
0:01:59]} 14... Nc8 {[%clk 0:01:46.5]} 15. Ne2 {[%clk 0:01:35.9]} 15... Ne7
{[%clk 0:01:42.7]} 16. Nf4 {[%clk 0:01:29.8]} 16... Ng6 {[%clk 0:01:39.1]} 17.
Nxg6 {[%clk 0:01:21.9]} 17... fxg6 {[%clk 0:01:33.4]} 18. Qe2 {[%clk 0:01:03.5]}
18... Qe7 {[%clk 0:01:30.3]} 19. Rf2 {[%clk 0:00:52.2]} 19... Bxb2 {[%clk
0:01:28.7]} 20. Rb1 {[%clk 0:00:48.7]} 20... Rxf2 {[%clk 0:01:26.4]} 21. Bxf2
{[%clk 0:00:45.7]} 21... Be5 {[%clk 0:01:25.5]} 22. Rxb7 {[%clk 0:00:45]} 22...
Bxa4 {[%clk 0:01:21.6]} 23. Qg4 {[%clk 0:00:17]} 23... a5 {[%clk 0:01:14.8]} 24.
Qe6+ {[%clk 0:00:13.6]} 24... Qxe6 {[%clk 0:01:05.8]} 25. dxe6 {[%clk
0:00:14.5]} 25... Be8 {[%clk 0:00:35.1]} 26. Rxc7 {[%clk 0:00:13.8]} 26... a4
{[%clk 0:00:32.2]} 27. Bc4 {[%clk 0:00:12.2]} 27... a3 {[%clk 0:00:19.2]} 28.
Ba2 {[%clk 0:00:07.6]} 28... Rb8 {[%clk 0:00:17.3]} 29. Be1 {[%clk 0:00:01.3]}
29... h5 {[%clk 0:00:10]} 30. e7+ {[%clk 0:00:01.3]} 30... Bf7 {[%clk
0:00:08.3]} 0-1

[Event "Early-Titled-Tuesday-Blitz-October-10-2023"]
[Site "Chess.com"]
[Date "2023.10.10"]
[Round "5"]
[White "ViktoriyaTarasova"]
[Black "FMStan15"]
[Result "1-0"]
[WhiteElo "2367"]
[BlackElo "2118"]
[TimeControl "180+1"]
[EndTime "8:54:03 PDT"]
[Termination "ViktoriyaTarasova won by resignation"]

1. d4 {[%clk 0:03:00.9]} 1... Nf6 {[%clk 0:02:59.6]} 2. c4 {[%clk 0:02:59.2]}
2... g6 {[%clk 0:02:59.7]} 3. Nc3 {[%clk 0:02:59.1]} 3... Bg7 {[%clk 0:03:00.2]}
4. e4 {[%clk 0:02:58.8]} 4... d6 {[%clk 0:03:00.6]} 5. h3 {[%clk 0:02:59.4]}
5... O-O {[%clk 0:03:00.6]} 6. Be3 {[%clk 0:03:00]} 6... e5 {[%clk 0:03:00.9]}
7. d5 {[%clk 0:03:00.1]} 7... a5 {[%clk 0:03:00.1]} 8. g4 {[%clk 0:02:59.6]}
8... Na6 {[%clk 0:02:59.7]} 9. Be2 {[%clk 0:02:59.8]} 9... Nc5 {[%clk
0:02:58.1]} 10. Qc2 {[%clk 0:02:59.9]} 10... Ne8 {[%clk 0:02:57.3]} 11. O-O-O
{[%clk 0:02:59]} 11... f5 {[%clk 0:02:57.5]} 12. f3 {[%clk 0:02:58.1]} 12... f4
{[%clk 0:02:56.8]} 13. Bf2 {[%clk 0:02:56.2]} 13... b6 {[%clk 0:02:54.6]} 14. h4
{[%clk 0:02:55.9]} 14... h6 {[%clk 0:02:52.5]} 15. Kd2 {[%clk 0:02:47.8]} 15...
Bd7 {[%clk 0:02:52.5]} 16. Nh3 {[%clk 0:02:47.7]} 16... a4 {[%clk 0:02:49.2]}
17. Ra1 {[%clk 0:02:43.1]} 17... Qb8 {[%clk 0:02:38.2]} 18. b4 {[%clk
0:02:41.7]} 18... axb3 {[%clk 0:02:37.1]} 19. axb3 {[%clk 0:02:41.4]} 19... Qb7
{[%clk 0:02:33.9]} 20. Qb2 {[%clk 0:02:38.8]} 20... Rxa1 {[%clk 0:02:21]} 21.
Rxa1 {[%clk 0:02:37.3]} 21... Nf6 {[%clk 0:02:17.4]} 22. b4 {[%clk 0:02:31.1]}
22... Na6 {[%clk 0:02:17]} 23. c5 {[%clk 0:02:21.2]} 23... Nb8 {[%clk
0:02:02.2]} 24. c6 {[%clk 0:02:19.9]} 24... Nxc6 {[%clk 0:01:52.2]} 25. dxc6
{[%clk 0:02:18.5]} 25... Bxc6 {[%clk 0:01:52.7]} 26. Qb3+ {[%clk 0:02:07.3]}
26... Kh7 {[%clk 0:01:42.9]} 27. g5 {[%clk 0:02:03]} 27... Nh5 {[%clk
0:01:26.9]} 28. gxh6 {[%clk 0:01:56.2]} 28... Bxh6 {[%clk 0:01:26.3]} 29. Ng5+
{[%clk 0:01:56.6]} 29... Bxg5 {[%clk 0:01:26.3]} 30. hxg5 {[%clk 0:01:56.8]}
30... Kg7 {[%clk 0:00:57.5]} 31. Bc4 {[%clk 0:01:53.8]} 31... Ng3 {[%clk
0:00:51.2]} 32. Bd5 {[%clk 0:01:49]} 32... Rh8 {[%clk 0:00:45.5]} 33. Bxc6
{[%clk 0:01:40.7]} 33... Qxc6 {[%clk 0:00:45.6]} 34. Qe6 {[%clk 0:01:40.4]}
34... Rh2 {[%clk 0:00:37.4]} 35. Qf6+ {[%clk 0:01:11.4]} 35... Kh7 {[%clk
0:00:22.1]} 36. Qf7+ {[%clk 0:00:44.6]} 36... Kh8 {[%clk 0:00:21.2]} 37. Qf8+
{[%clk 0:00:45]} 37... Kh7 {[%clk 0:00:21.5]} 38. Nd1 {[%clk 0:00:43.5]} 38...
Nxe4+ {[%clk 0:00:09]} 39. fxe4 {[%clk 0:00:38.6]} 39... Qxe4 {[%clk 0:00:08.2]}
40. Qe7+ {[%clk 0:00:31.6]} 40... Kh8 {[%clk 0:00:07.6]} 41. Qd8+ {[%clk
0:00:31.5]} 41... Kh7 {[%clk 0:00:07.8]} 42. Qxc7+ {[%clk 0:00:31.7]} 42... Kh8
{[%clk 0:00:07.4]} 43. Qd8+ {[%clk 0:00:32]} 43... Kh7 {[%clk 0:00:07.6]} 44.
Ra7+ {[%clk 0:00:32]} 1-0

[Event "Early-Titled-Tuesday-Blitz-October-10-2023"]
[Site "Chess.com"]
[Date "2023.10.10"]
[Round "5"]
[White "ActorXu"]
[Black "Herman-NY"]
[Result "1-0"]
[WhiteElo "2740"]
[BlackElo "2535"]
[TimeControl "180+1"]
[EndTime "8:54:04 PDT"]
[Termination "ActorXu won by resignation"]

1. e4 {[%clk 0:03:00.9]} 1... c5 {[%clk 0:02:56.1]} 2. Nf3 {[%clk 0:03:00.6]}
2... Nc6 {[%clk 0:02:56.7]} 3. Bb5 {[%clk 0:02:59.9]} 3... e6 {[%clk 0:02:57.2]}
4. O-O {[%clk 0:02:58.2]} 4... Nge7 {[%clk 0:02:57.6]} 5. Re1 {[%clk 0:02:57.9]}
5... a6 {[%clk 0:02:58.1]} 6. Bf1 {[%clk 0:02:57]} 6... d5 {[%clk 0:02:58]} 7.
exd5 {[%clk 0:02:56.1]} 7... Nxd5 {[%clk 0:02:58.9]} 8. d4 {[%clk 0:02:55.2]}
8... Nf6 {[%clk 0:02:59.3]} 9. Be3 {[%clk 0:02:53.4]} 9... cxd4 {[%clk
0:02:59.7]} 10. Nxd4 {[%clk 0:02:52.8]} 10... Bd7 {[%clk 0:03:00.4]} 11. c4
{[%clk 0:02:50.3]} 11... Be7 {[%clk 0:03:00.9]} 12. Nc3 {[%clk 0:02:48.4]} 12...
O-O {[%clk 0:03:00.4]} 13. a3 {[%clk 0:02:46]} 13... Nxd4 {[%clk 0:02:55.2]} 14.
Bxd4 {[%clk 0:02:44.6]} 14... a5 {[%clk 0:02:55.4]} 15. Qe2 {[%clk 0:02:20.3]}
15... a4 {[%clk 0:02:49.3]} 16. Rad1 {[%clk 0:02:17.7]} 16... Qc8 {[%clk
0:02:46.3]} 17. Nd5 {[%clk 0:02:05.3]} 17... Nxd5 {[%clk 0:02:39.5]} 18. cxd5
{[%clk 0:02:05.1]} 18... Ra5 {[%clk 0:02:07.2]} 19. Bc3 {[%clk 0:01:34.9]} 19...
Ra8 {[%clk 0:00:54.7]} 20. d6 {[%clk 0:01:24.1]} 20... Bd8 {[%clk 0:00:50.8]}
21. Rd3 {[%clk 0:01:12.8]} 21... f6 {[%clk 0:00:42.8]} 22. Rg3 {[%clk
0:01:08.7]} 22... e5 {[%clk 0:00:38.9]} 23. Qh5 {[%clk 0:01:08.6]} 23... Bf5
{[%clk 0:00:34.2]} 24. Bb5 {[%clk 0:01:05.8]} 24... Bb6 {[%clk 0:00:17.5]} 25.
Rd1 {[%clk 0:00:42.2]} 25... Bg6 {[%clk 0:00:10.7]} 26. Qe2 {[%clk 0:00:39.3]}
26... Qc5 {[%clk 0:00:10.8]} 27. Rxg6 {[%clk 0:00:33.3]} 27... hxg6 {[%clk
0:00:08.7]} 28. Bc4+ {[%clk 0:00:26.8]} 28... Rf7 {[%clk 0:00:07.1]} 29. Bb4
{[%clk 0:00:24.2]} 29... Qc6 {[%clk 0:00:04.5]} 30. d7 {[%clk 0:00:20.1]} 30...
Rd8 {[%clk 0:00:02.9]} 31. Rd6 {[%clk 0:00:15.9]} 31... Qc7 {[%clk 0:00:03.2]}
32. Qg4 {[%clk 0:00:11.5]} 32... Bd4 {[%clk 0:00:01.5]} 33. Bxf7+ {[%clk
0:00:11]} 33... Kxf7 {[%clk 0:00:01.5]} 34. Qe6+ {[%clk 0:00:11.6]} 34... Kf8
{[%clk 0:00:01.8]} 35. Rc6+ {[%clk 0:00:12.3]} 1-0